fUST/lending_fUST_20250729
["ID","MTS","AMOUNT","RATE_DAILY","PERIOD"]
[375877997,1753771840844,-248.17162007,0.00020116,2]
[375877999,1753771840854,-257.359175,0.00020187,2]
[375878002,1753771840863,-460.0,0.00020273,2]
[375878003,1753771840874,-539.54,0.00020273,2]
[375878006,1753771840884,-460.0,0.00020273,2]
[375878007,1753771840893,-460.0,0.00020273,2]
[375878010,1753771840903,-460.0,0.00020273,2]
[375878012,1753771840912,-460.0,0.00020273,2]
[375878014,1753771840922,-580.66,0.00020273,2]
[375878016,1753771840931,-539.54,0.00020547,2]
[375878018,1753771840940,-192.56,0.00020547,2]
[375878020,1753771840952,-460.0,0.00020547,2]
[375878022,1753771840961,-460.0,0.00020547,2]
[375878024,1753771840972,-460.0,0.00020547,2]
[375878025,1753771840981,-580.66,0.00020547,2]
[375878028,1753771840993,-1200.0,0.00020586,2]
[375878029,1753771841002,-204.49941105,0.00020604,2]
[375878032,1753771841015,-214.91980558,0.00020634,2]
[375878034,1753771841027,-160.0,0.00020638,2]
[375878036,1753771841039,-160.0,0.00020638,2]
[375878038,1753771841051,-216.1031716,0.00020638,2]
[375878041,1753771841064,-160.0,0.00020638,2]
[375878043,1753771841076,-160.0,0.00020638,2]
[375878045,1753771841087,-841.06558547,0.00020638,2]
[375878047,1753771841099,-539.54,0.00020821,2]
[375878049,1753771841109,-319.48,0.00020821,2]
[375878051,1753771841119,-460.0,0.00020821,2]
[375878053,1753771841129,-460.0,0.00020821,2]
[375878056,1753771841140,-580.66,0.00020821,2]
[375878058,1753771841152,-419.0,0.00021,2]
[375878060,1753771841163,-208.83618979,0.00021014,2]
[375878062,1753771841175,-500.0,0.00021014,2]
[375878064,1753771841186,-591.6228801,0.00021075,2]
[375878066,1753771841196,-539.54,0.00021095,2]
[375878069,1753771841212,-460.0,0.00021095,2]
[375878071,1753771841223,-460.0,0.00021095,2]
[375878073,1753771841234,-580.66,0.00021095,2]
[375878075,1753771841246,-248.17162007,0.00021153,2]
[375878077,1753771841256,-539.54,0.00021369,2]
[375878079,1753771841267,-445.55619371,0.00021369,2]
[375878082,1753771841278,-233.57,0.00021369,2]
[375878085,1753771841297,-580.66,0.00021369,2]
[375878087,1753771841314,-200.0,0.00021478,15]
[375878089,1753771841327,-200.0,0.00021478,15]
[375878092,1753771841339,-200.0,0.00021478,15]
[375878094,1753771841352,-200.0,0.00021478,15]
[375878096,1753771841365,-320.0,0.00021478,15]
[375878099,1753771841379,-539.54,0.00021643,2]
[375878101,1753771841390,-580.66,0.00021643,2]
[375878103,1753771841402,-405.613,0.00021678,2]
[375878105,1753771841413,-727.0,0.00021691,4]
[375878107,1753771841424,-460.0,0.00021916,2]
[375878109,1753771841434,-461.66310108,0.00021916,2]
[375878111,1753771841446,-539.54,0.00021917,2]
[375878114,1753771841461,-580.66,0.00021917,2]
[375878116,1753771841473,-166.0,0.00022,2]
[375878118,1753771841484,-4178.03,0.00022,7]
[375878121,1753771841498,-782.46,0.00022,7]
[375878123,1753771841509,-2025.35,0.00022,7]
[375878125,1753771841521,-727.0,0.00022118,4]
[375878127,1753771841533,-248.17162007,0.00022191,2]
[375878129,1753771841545,-539.54,0.00022191,2]
[375878131,1753771841557,-580.66,0.00022191,2]
[375878134,1753771841569,-591.6228801,0.0002235,2]
[375878136,1753771841580,-539.54,0.00022465,2]
[375878138,1753771841591,-580.66,0.00022465,2]
[375878140,1753771841603,-152.9570777,0.00022466,2]
[375878142,1753771841615,-500.0,0.00022466,2]
[375878144,1753771841625,-727.0,0.00022545,5]
[375878146,1753771841636,-500.0,0.00022594,2]
[375878148,1753771841645,-12637.12721421,0.00022721,2]
[375878150,1753771841655,-539.54,0.00022739,2]
[375878152,1753771841665,-580.66,0.00022739,2]
[375878154,1753771841676,-500.0,0.0002274,2]
[375878156,1753771841688,-727.0,0.00022972,5]
[375878158,1753771841698,-160.0,0.00023,2]
[375878161,1753771841708,-1127.79,0.00023,2]
[375878163,1753771841719,-539.54,0.00023013,2]
[375878165,1753771841730,-580.66,0.00023013,2]
[375878167,1753771841743,-166.0,0.00023014,7]
[375878169,1753771841755,-500.0,0.00023014,2]
[375878171,1753771841766,-2671.9162538,0.00023121,2]
[375878174,1753771841778,-2159.0,0.00023151,2]
[375878176,1753771841790,-407.0,0.00023151,2]
[375878178,1753771841801,-969.0,0.00023151,2]
[375878180,1753771841811,-150.0,0.00023151,2]
[375878182,1753771841823,-248.17162007,0.00023228,2]
[375878184,1753771841835,-539.54,0.00023287,2]
[375878186,1753771841847,-580.66,0.00023287,2]
[375878188,1753771841858,-2994.45,0.00023287,2]
[375878191,1753771841870,-500.0,0.00023288,2]
[375878193,1753771841881,-727.0,0.00023399,5]
[375878195,1753771841892,-151.0,0.000235,7]
[375878197,1753771841903,-539.54,0.00023561,2]
[375878199,1753771841915,-580.66,0.00023561,2]
[375878201,1753771841925,-500.0,0.00023562,2]
[375878203,1753771841935,-200.0,0.00023584,15]
[375878205,1753771841945,-200.0,0.00023584,15]
[375878207,1753771841958,-200.0,0.00023584,15]
[375878209,1753771841967,-200.0,0.00023584,15]
[375878211,1753771841977,-200.0,0.00023584,15]
[375878213,1753771841987,-200.0,0.00023584,15]
[375878215,1753771841998,-366.0,0.00023584,15]
[375878217,1753771842008,-591.6228801,0.00023625,2]
[375878220,1753771842019,-817.17964657,0.00023629,2]
[375878222,1753771842031,-160.0,0.00023662,3]
[375878224,1753771842042,-500.0,0.00023687,2]
[375878226,1753771842053,-1082.37483076,0.00023687,2]
[375878228,1753771842064,-280.15836526,0.00023687,2]
[375878230,1753771842077,-1082.37483076,0.00023687,2]
[375878232,1753771842087,-1082.37483076,0.00023687,2]
[375878234,1753771842097,-1082.37483076,0.00023687,2]
[375878236,1753771842106,-1082.37483076,0.00023687,2]
[375878238,1753771842116,-1082.37483076,0.00023687,2]
[375878240,1753771842127,-1082.37483076,0.00023687,2]
[375878242,1753771842137,-1082.37483076,0.00023687,2]
[375878244,1753771842147,-1082.37483076,0.00023687,2]
[375878247,1753771842158,-1082.37483076,0.00023687,2]
[375878249,1753771842168,-1082.37483076,0.00023687,2]
[375878251,1753771842179,-1082.37483076,0.00023687,2]
[375878253,1753771842191,-523.25,0.0002369,6]
[375878255,1753771842201,-523.25,0.0002379,2]
[375878257,1753771842212,-4178.03,0.000238,7]
[375878259,1753771842222,-782.46,0.000238,7]
[375878261,1753771842232,-727.0,0.00023825,6]
[375878263,1753771842243,-539.54,0.00023835,2]
[375878265,1753771842252,-580.66,0.00023835,2]
[375878267,1753771842262,-472.5845304,0.00023836,2]
[375878269,1753771842272,-523.25,0.0002389,6]
[375878271,1753771842283,-2031.09221931,0.000239,2]
[375878273,1753771842293,-523.25,0.0002399,5]
[375878275,1753771842303,-151.0,0.00024,7]
[375878277,1753771842314,-523.25,0.0002409,6]
[375878279,1753771842324,-539.54,0.00024109,2]
[375878281,1753771842334,-580.66,0.00024109,2]
[375878283,1753771842344,-523.25,0.0002419,4]
[375878285,1753771842354,-727.0,0.00024252,6]
[375878287,1753771842364,-248.17162007,0.00024266,2]
[375878289,1753771842374,-523.25,0.0002429,2]
[375878291,1753771842385,-539.54,0.00024383,2]
[375878293,1753771842395,-580.66,0.00024383,2]
[375878296,1753771842406,-523.25,0.0002439,6]
[375878298,1753771842417,-523.25,0.0002449,5]
[375878300,1753771842427,-151.0,0.000245,10]
[375878302,1753771842437,-523.25,0.0002459,3]
[375878304,1753771842448,-539.54,0.00024657,2]
[375878306,1753771842458,-580.66,0.00024657,2]
[375878308,1753771842469,-185.78895639,0.00024658,2]
[375878310,1753771842479,-500.0,0.00024658,2]
[375878312,1753771842490,-727.0,0.00024679,6]
[375878314,1753771842501,-523.25,0.0002469,2]
[375878316,1753771842511,-500.0,0.00024786,2]
[375878318,1753771842522,-523.25,0.0002479,5]
[375878320,1753771842532,-523.25,0.0002489,5]
[375878322,1753771842543,-11711.13,0.000249,2]
[375878324,1753771842554,-591.6228801,0.000249,2]
[375878326,1753771842565,-751718.489429,0.000249,2]
[375878329,1753771842575,-2175.25574754,0.000249,2]
[375878331,1753771842585,-539.54,0.00024931,2]
[375878333,1753771842596,-580.66,0.00024931,2]
[375878335,1753771842607,-170.45776717,0.00024932,2]
[375878337,1753771842617,-500.0,0.00024932,2]
[375878339,1753771842628,-523.25,0.0002499,3]
[375878341,1753771842637,-70876.99825902,0.00025,30]
[375878343,1753771842654,-394998.94497569,0.00025,30]
[375878351,1753771842743,-225.13567611,0.00018978,2]
[375878353,1753771842753,-460.0,0.00019178,2]
[375878355,1753771842763,-2025.35,0.000238,7]
[375878357,1753771842773,-2137.01437013,0.00025,30]
[375878359,1753771842783,-9926.78000057,0.00025,30]
[375878362,1753771842794,-526.67226028,0.00025,30]
[375878364,1753771842804,-312.16666667,0.00025,30]
[375878380,1753771842957,-250.0,0.00025041,30]
[375878383,1753771842972,-2175.25574754,0.0002506,2]
[375878384,1753771842982,-523.25,0.0002509,2]
[375878387,1753771842991,-160.0,0.000251,7]
[375878390,1753771843001,-727.0,0.00025106,7]
[375878392,1753771843010,-523.31537039,0.0002519,2]
[375878394,1753771843019,-4178.03,0.000252,7]
[375878396,1753771843028,-782.46,0.000252,7]
[375878398,1753771843039,-2025.35,0.000252,7]
[375878400,1753771843048,-539.54,0.00025205,2]
[375878402,1753771843057,-580.66,0.00025205,2]
[375878404,1753771843066,-500.0,0.00025206,2]
[375878407,1753771843076,-2175.25574754,0.0002522,2]
[375878410,1753771843085,-150.0,0.00025265,2]
[375878412,1753771843094,-154.104313,0.0002529,2]
[375878414,1753771843104,-154.104313,0.000253,30]
[375878417,1753771843113,-248.17162007,0.00025303,2]
[375878420,1753771843122,-2175.25574754,0.0002538,2]
[375878423,1753771843131,-154.104313,0.000254,30]
[375878427,1753771843141,-502.03127358,0.0002543,5]
[375878429,1753771843150,-500.0,0.00025468,9]
[375878430,1753771843159,-286.63396331,0.00025468,9]
[375878432,1753771843168,-539.73485691,0.00025479,2]
[375878434,1753771843177,-580.77413983,0.00025479,2]
[375878436,1753771843186,-2994.45,0.00025479,4]
[375878438,1753771843195,-500.0,0.0002548,2]
[375878440,1753771843204,-160.67370209,0.00025512,2]
[375878442,1753771843216,-536.69781212,0.00025512,2]
[375879190,1753771860548,150.0,0.00019784,30]
[375879191,1753771860949,150.0,0.00021583,30]
[375879192,1753771878397,250.837132,0.00013699,2]
[375879194,1753771941600,150.0,0.00018344,30]
[375879195,1753771942050,150.0,0.00020011,30]
[375879196,1753771942475,150.0,0.00021679,30]
[375879197,1753772022243,150.0,0.00018275,30]
[375879198,1753772022657,150.0,0.00019936,30]
[375879199,1753772023543,150.0,0.00021598,30]
[375879200,1753772043570,5000.0,0.000191,6]
[375879201,1753772058991,5000.0,0.000191,6]
[375879202,1753772103009,150.0,0.0001798,30]
[375879203,1753772103540,150.0,0.00019615,30]
[375879204,1753772104054,150.0,0.00021249,30]
[375879205,1753772104493,150.0,0.00022884,30]
[375879206,1753772110462,450.13493314,0.00018411,2]
[375879207,1753772185887,150.0,0.00018556,30]
[375879208,1753772186833,150.0,0.00020243,30]
[375879209,1753772187257,150.0,0.0002193,30]
[375879210,1753772200174,24900.0,0.0001819,2]
[375879211,1753772261536,1000.0,0.00023,30]
[375879212,1753772265164,150.0,0.00018383,30]
[375879213,1753772265850,150.0,0.00020055,30]
[375879214,1753772266295,150.0,0.00021726,30]
[375879215,1753772287841,1000.0,0.00023,30]
[375879216,1753772306149,1200.0,0.00023,30]
[375879218,1753772325395,1200.0,0.00023,30]
[375879220,1753772342827,1200.0,0.00023,30]
[375879221,1753772343436,150.0,0.00015888,30]
[375879222,1753772343929,150.0,0.00017332,30]
[375879223,1753772344356,150.0,0.00018776,30]
[375879224,1753772344945,150.0,0.00020221,30]
[375879225,1753772361711,1198.79,0.00023,30]
[375879226,1753772381322,1200.0,0.00023,30]
[375879227,1753772411912,373.46400694,0.00018226,2]
[375879228,1753772419877,150.0,0.0001552,30]
[375879229,1753772420289,150.0,0.00016931,30]
[375879230,1753772429720,895.0,0.00023,30]
[375879231,1753772452077,5000.0,0.000191,6]
[375879232,1753772461150,433.16874753,0.00018411,2]
[375879233,1753772461195,433.16874753,0.00018411,2]
[375879234,1753772462294,1500.0,0.00023,30]
[375879235,1753772464016,360.97395628,0.00018411,2]
[375879236,1753772466067,270.73046721,0.00018411,2]
[375879237,1753772467570,203.04785041,0.00018411,2]
[375879238,1753772467886,919.14434132,0.00018501,2]
[375879239,1753772467910,4080.85565868,0.00018501,2]
[375879240,1753772468580,152.28588781,0.00018501,2]
[375879241,1753772469995,151.0,0.00018501,2]
[375879242,1753772483216,5000.0,0.00018501,2]
[375879243,1753772495819,150.0,0.0001594,30]
[375879244,1753772496230,150.0,0.00017389,30]
[375879245,1753772499845,5000.0,0.00018501,2]
[375879246,1753772516236,5000.0,0.00018501,2]
[375879247,1753772532037,5000.0,0.00018501,2]
[375879248,1753772549956,5000.0,0.00018501,2]
[375879249,1753772560418,10000.0,0.00018104,2]
[375879250,1753772565501,768.14434132,0.00018501,2]
[375879251,1753772565534,4231.85565868,0.00018501,2]
[375879252,1753772570684,150.0,0.00017022,30]
[375879253,1753772571120,150.0,0.00018569,30]
[375879254,1753772580368,315.7812952,0.00018104,2]
[375879255,1753772582180,5000.0,0.00018501,2]
[375879256,1753772600269,5000.0,0.00018501,2]
[375879257,1753772616948,5000.0,0.00018501,2]
[375879258,1753772632933,5000.0,0.00018501,2]
[375879259,1753772646659,150.0,0.00017098,30]
[375879260,1753772647097,150.0,0.00018652,30]
[375879261,1753772650680,5000.0,0.00018501,2]
[375879262,1753772666778,5000.0,0.00018501,2]
[375879263,1753772682746,5000.0,0.00018501,2]
[375879264,1753772698889,452.36304612,0.00018501,2]
[375879265,1753772698913,4547.63695388,0.00018501,2]
[375879266,1753772713113,918.489334,0.00018111,2]
[375879267,1753772713466,605.653702,0.00018129,2]
[375879268,1753772713840,475.503463,0.00018224,2]
[375879269,1753772714235,298.6388843,0.00018225,2]
[375879270,1753772714270,5000.0,0.00018501,2]
[375879271,1753772721003,196.6484017,0.00017996,2]
[375879272,1753772723277,150.0,0.00014487,30]
[375879273,1753772723709,150.0,0.0001484,30]
[375879274,1753772724130,150.0,0.00015193,30]
[375879275,1753772724532,150.0,0.00015547,30]
[375879276,1753772732806,5000.0,0.00018501,2]
[375879277,1753772748863,5000.0,0.00018501,2]
[375879278,1753772754909,397.0708084,0.00017908,2]
[375879279,1753772762536,374.95156817,0.00018501,2]
[375879280,1753772763599,281.21367613,0.00018501,2]
[375879281,1753772764685,210.9102571,0.00018501,2]
[375879282,1753772765428,5000.0,0.00018501,2]
[375879283,1753772765836,158.18269282,0.00018501,2]
[375879284,1753772767299,151.0,0.00018501,2]
[375879285,1753772782438,5000.0,0.00018501,2]
[375879286,1753772797931,5000.0,0.00018501,2]
[375879287,1753772798355,150.0,0.00014912,30]
[375879288,1753772798800,150.0,0.00015275,30]
[375879289,1753772801734,150.0,0.00015639,30]
[375879290,1753772808670,1384.1002585,0.0001849,2]
[375879291,1753772808694,1594.26758118,0.0001849,2]
[375879292,1753772813853,5000.0,0.00018501,2]
[375879293,1753772832306,5000.0,0.00018501,2]
[375879294,1753772834286,2317.93727558,0.00018471,2]
[375879295,1753772850654,5000.0,0.00018501,2]
[375879296,1753772866652,5000.0,0.00018501,2]
[375879297,1753772877230,150.0,0.00014906,30]
[375879298,1753772877645,150.0,0.00015269,30]
[375879299,1753772878083,150.0,0.00015633,30]
[375879300,1753772884249,5000.0,0.00018501,2]
[375879301,1753772884689,1415.059991,0.00017782,2]
[375879302,1753772893331,287.56986894,0.00018471,2]
[375879303,1753772900286,5000.0,0.00018501,2]
[375879304,1753772911448,208.10849459,0.00018471,2]
[375879305,1753772915812,4177.05678871,0.00018501,2]
[375879306,1753772915838,822.94321129,0.00018501,2]
[375879307,1753772927118,244.6744428,0.00018326,2]
[375879308,1753772931750,5000.0,0.00018501,2]
[375879309,1753772938156,452.11106464,0.00018471,2]
[375879310,1753772947452,5000.0,0.00018501,2]
[375879311,1753772951073,150.0,0.00015148,30]
[375879312,1753772951504,150.0,0.00015518,30]
[375879313,1753772953354,526.51586143,0.00018448,2]
[375879314,1753772963584,5000.0,0.00018501,2]
[375879315,1753772980056,5000.0,0.00018501,2]
[375879316,1753772995492,5000.0,0.00018501,2]
[375879317,1753773005830,254.775093,0.00013699,2]
[375879322,1753773015480,180.461291,0.00018014,2]
[375879323,1753773015679,5000.0,0.00018501,2]
[375879324,1753773015814,153.331775,0.00018043,2]
[375879325,1753773016206,212.25144748,0.00018057,2]
[375879326,1753773027540,150.0,0.00014634,30]
[375879327,1753773028033,150.0,0.00014991,30]
[375879328,1753773028355,1811.58152781,0.00018501,2]
[375879329,1753773031428,5000.0,0.00018501,2]
[375879380,1753773032969,-361.68885172,0.00018515,2]
[375879382,1753773032978,-279.90126691,0.00018548,2]
[375879384,1753773032988,-361.68885168,0.00018581,2]
[375879386,1753773032997,-307.31462325,0.00018601,2]
[375879387,1753773033007,-203.66640644,0.0001861,2]
[375879636,1753773039112,-51.33359356,0.0001861,2]
[375879638,1753773039121,-315.9070332,0.00018615,2]
[375879640,1753773039130,-361.68885168,0.00018648,2]
[375879642,1753773039140,-202.59879135,0.00018671,2]
[375879644,1753773039150,-361.68885168,0.00018714,2]
[375879646,1753773039159,-500.0,0.00018773,2]
[375879647,1753773039168,-178.5367691,0.0001878,2]
[375879648,1753773039178,-1200.0,0.00018787,2]
[375879649,1753773039187,-300.0,0.00018787,2]
[375879650,1753773039198,-1200.0,0.00018788,2]
[375879651,1753773039207,-300.0,0.00018788,2]
[375879652,1753773039217,-300.0,0.00018788,2]
[375879653,1753773039227,-300.0,0.00018788,2]
[375879655,1753773039237,-300.0,0.00018788,2]
[375879656,1753773039247,-337.31035575,0.0001879,2]
[375879657,1753773039259,-162.68964425,0.0001879,2]
[375879659,1753773039268,-500.0,0.0001879,2]
[375879660,1753773039277,-500.0,0.0001879,2]
[375879662,1753773039286,-228.78795598,0.0001879,2]
[375879664,1753773039296,-215.63549433,0.0001888,2]
[375879665,1753773039310,-327.59568655,0.0001888,2]
[375879667,1753773039321,-2319.41784754,0.000189,2]
[375879668,1753773039330,-882.09218025,0.000189,2]
[375879669,1753773039342,-533.92,0.000189,2]
[375879670,1753773039356,-1430.0000001,0.000189,2]
[375879671,1753773039369,-301.71173275,0.000189,2]
[375879672,1753773039383,-787.08385192,0.000189,2]
[375879673,1753773039395,-26.35210046,0.000189,2]
[375879674,1753773039404,-500.0,0.00019073,2]
[375879675,1753773039414,-289.28896123,0.00019073,2]
[375879676,1753773039423,-500.0,0.00019073,2]
[375879677,1753773039432,-503.1811003,0.00019073,2]
[375879678,1753773039441,-500.0,0.00019073,2]
[375879679,1753773039451,-500.0,0.00019073,2]
[375879680,1753773039460,-501.96038851,0.00019073,2]
[375879681,1753773039470,-500.0,0.00019073,2]
[375879682,1753773039480,-500.0,0.00019073,2]
[375879683,1753773039489,-500.0,0.00019073,2]
[375879684,1753773039498,-500.0,0.00019073,2]
[375879685,1753773039508,-500.42450837,0.00019073,2]
[375879686,1753773039518,-515.48631446,0.00019073,2]
[375879687,1753773039527,-500.0,0.00019073,2]
[375879688,1753773039536,-500.0,0.00019073,2]
[375879689,1753773039546,-500.0,0.00019073,2]
[375879690,1753773039555,-497.86177951,0.00019073,2]
[375879691,1753773039565,-7032.84396065,0.00019078,2]
[375879692,1753773039574,-2698.64780029,0.00019078,2]
[375879693,1753773039584,-349.35,0.00019087,3]
[375879694,1753773039593,-174.68,0.00019087,3]
[375879695,1753773039602,-524.06,0.00019087,3]
[375879696,1753773039611,-156.45,0.00019088,3]
[375879697,1753773039621,-469.38,0.00019088,3]
[375879698,1753773039631,-172.24,0.0001909,3]
[375879699,1753773039640,-209.67,0.0001909,3]
[375879700,1753773039650,-325.0,0.0001909,3]
[375879701,1753773039659,-162.5,0.0001909,3]
[375879702,1753773039668,-487.51,0.0001909,3]
[375879703,1753773039677,-797.63,0.0001909,3]
[375879704,1753773039686,-555.72,0.0001909,3]
[375879705,1753773039695,-277.86,0.0001909,3]
[375879706,1753773039705,-833.59,0.0001909,3]
[375879707,1753773039715,-364.04,0.0001909,3]
[375879708,1753773039724,-182.02,0.0001909,3]
[375879709,1753773039733,-277.86,0.0001909,3]
[375879710,1753773039742,-318.7,0.0001909,3]
[375879711,1753773039752,-159.35,0.0001909,3]
[375879712,1753773039761,-478.09,0.0001909,3]
[375879713,1753773039770,-698.71,0.0001909,3]
[375879714,1753773039781,-500.0,0.00019096,2]
[375879715,1753773039791,-500.0,0.00019096,2]
[375879716,1753773039801,-500.0,0.00019096,2]
[375879717,1753773039810,-500.0,0.00019096,2]
[375879718,1753773039820,-152.20988823,0.00019096,2]
[375879719,1753773039830,-500.0,0.00019096,2]
[375879720,1753773039955,-500.0,0.00019096,2]
[375879721,1753773039965,-500.0,0.00019096,2]
[375879722,1753773039975,-500.0,0.00019096,2]
[375879723,1753773039984,-500.0,0.00019096,2]
[375879724,1753773039995,-500.0,0.00019096,2]
[375879725,1753773040004,-500.0,0.00019096,2]
[375879726,1753773040013,-577.03316951,0.00019096,2]
[375879727,1753773040023,-180.25203402,0.00019096,2]
[375879728,1753773040033,-187.16699835,0.00019096,2]
[375879729,1753773040043,-500.0,0.00019096,2]
[375879730,1753773040053,-604.91405376,0.00019096,2]
[375879731,1753773040063,-500.0,0.00019096,2]
[375879732,1753773040073,-500.0,0.00019096,2]
[375879733,1753773040082,-500.0,0.00019096,2]
[375879734,1753773040091,-500.0,0.00019096,2]
[375879735,1753773040101,-500.0,0.00019096,2]
[375879736,1753773040110,-500.0,0.00019096,2]
[375879737,1753773040119,-500.0,0.00019096,2]
[375879738,1753773040129,-500.0,0.00019096,2]
[375879739,1753773040138,-500.0,0.00019096,2]
[375879740,1753773040148,-196.90445175,0.00019096,2]
[375879741,1753773040157,-500.0,0.00019096,2]
[375879742,1753773040168,-500.0,0.00019096,2]
[375879743,1753773040178,-500.0,0.00019096,2]
[375879744,1753773040187,-500.0,0.00019096,2]
[375879745,1753773040198,-500.0,0.00019096,2]
[375879746,1753773040208,-500.0,0.00019096,2]
[375879747,1753773040222,-500.0,0.00019096,2]
[375879748,1753773040234,-500.0,0.00019096,2]
[375879749,1753773040244,-500.0,0.00019096,2]
[375879750,1753773040254,-500.0,0.00019096,2]
[375879751,1753773040264,-500.0,0.00019096,2]
[375879752,1753773040274,-500.0,0.00019096,2]
[375879753,1753773040284,-500.0,0.00019096,2]
[375879754,1753773040295,-500.0,0.00019096,2]
[375879755,1753773040307,-500.0,0.00019096,2]
[375879756,1753773040321,-500.0,0.00019096,2]
[375879757,1753773040331,-500.0,0.00019096,2]
[375879758,1753773040341,-500.0,0.00019096,2]
[375879759,1753773040350,-500.0,0.00019096,2]
[375879760,1753773040361,-500.0,0.00019096,2]
[375879762,1753773040371,-500.0,0.00019096,2]
[375879763,1753773040380,-500.0,0.00019096,2]
[375879764,1753773040394,-500.0,0.00019096,2]
[375879765,1753773040404,-500.0,0.00019096,2]
[375879766,1753773040414,-500.0,0.00019096,2]
[375879767,1753773040423,-500.0,0.00019096,2]
[375879768,1753773040433,-500.0,0.00019096,2]
[375879769,1753773040442,-500.0,0.00019096,2]
[375879770,1753773040452,-500.0,0.00019096,2]
[375879771,1753773040462,-500.0,0.00019096,2]
[375879772,1753773040471,-500.0,0.00019096,2]
[375879773,1753773040481,-500.0,0.00019096,2]
[375879774,1753773040490,-500.0,0.00019096,2]
[375879775,1753773040500,-500.0,0.00019096,2]
[375879776,1753773040510,-500.0,0.00019096,2]
[375879777,1753773040519,-500.0,0.00019096,2]
[375879779,1753773040529,-500.0,0.00019096,2]
[375879781,1753773040538,-500.0,0.00019096,2]
[375879783,1753773040549,-500.0,0.00019096,2]
[375879785,1753773040559,-500.0,0.00019096,2]
[375879787,1753773040568,-500.0,0.00019096,2]
[375879789,1753773040578,-500.0,0.00019096,2]
[375879791,1753773040587,-500.0,0.00019096,2]
[375879793,1753773040597,-500.0,0.00019096,2]
[375879795,1753773040607,-500.0,0.00019096,2]
[375879797,1753773040618,-500.0,0.00019096,2]
[375879799,1753773040628,-500.0,0.00019096,2]
[375879801,1753773040638,-500.0,0.00019096,2]
[375879803,1753773040649,-500.0,0.00019096,2]
[375879805,1753773040659,-500.0,0.00019096,2]
[375879807,1753773040669,-600.26082205,0.00019096,2]
[375879809,1753773040679,-500.0,0.00019096,2]
[375879811,1753773040691,-500.0,0.00019096,2]
[375879813,1753773040701,-500.0,0.00019096,2]
[375879815,1753773040712,-500.0,0.00019096,2]
[375879817,1753773040722,-640.67830681,0.00019096,2]
[375879819,1753773040732,-500.0,0.00019096,2]
[375879821,1753773040742,-500.0,0.00019096,2]
[375879823,1753773040752,-500.0,0.00019096,2]
[375879825,1753773040762,-500.0,0.00019096,2]
[375879827,1753773040771,-500.0,0.00019096,2]
[375879829,1753773040780,-500.0,0.00019096,2]
[375879831,1753773040790,-500.0,0.00019096,2]
[375879833,1753773040799,-500.0,0.00019096,2]
[375879835,1753773040809,-500.0,0.00019096,2]
[375879836,1753773040818,-500.0,0.00019096,2]
[375879838,1753773040827,-500.0,0.00019096,2]